[Event "Schack-SM 2024: Mastarklassen-elit"]
[Site "Fortnox Arena, Hejaregatan 5, Vaxjo, Sweden"]
[Date "2024.07.06"]
[Round "8.5"]
[White "Carlsson, Ludvig"]
[Black "Crevatin, Leo"]
[Result "1-0"]
[TimeControl "90 minutes for 40 moves + 30 minutes for the rest of the game + 30 seconds per move from move one."]
[WhiteTitle "IM"]
[BlackTitle "FM"]
[WhiteElo "2335"]
[BlackElo "2235"]

1. e4 {[%clk 01:30:43]} {[%emt 00:00:16]} c6 {[%clk 01:30:22]} {[%emt
00:00:39]} 2. Nf3 {[%clk 01:31:05]} {[%emt 00:00:07]} d5 {[%clk 01:30:22]}
{[%emt 00:00:31]} 3. d3 {[%clk 01:31:29]} {[%emt 00:00:05]} g6 {[%clk
01:27:31]} {[%emt 00:03:22]} 4. exd5 {[%clk 01:31:50]} {[%emt 00:00:09]} cxd5
{[%clk 01:27:30]} {[%emt 00:00:32]} 5. d4 {[%clk 01:32:15]} {[%emt 00:00:04]}
Nc6 {[%clk 01:26:07]} {[%emt 00:01:53]} 6. Bd3 {[%clk 01:32:38]} {[%emt
00:00:06]} Bg7 {[%clk 01:25:35]} {[%emt 00:01:02]} 7. O-O {[%clk 01:33:01]}
{[%emt 00:00:06]} Bg4 {[%clk 01:21:55]} {[%emt 00:04:10]} 8. c3 {[%clk
01:33:20]} {[%emt 00:00:13]} Nf6 {[%clk 01:18:21]} {[%emt 00:04:03]} 9. Nbd2
{[%clk 01:33:12]} {[%emt 00:00:37]} O-O {[%clk 01:16:20]} {[%emt 00:02:32]} 10.
h3 {[%clk 01:33:12]} {[%emt 00:00:30]} Bf5 {[%clk 01:14:43]} {[%emt 00:02:08]}
11. Nb3 {[%clk 01:31:20]} {[%emt 00:02:22]} Bxd3 {[%clk 01:12:00]} {[%emt
00:03:13]} 12. Qxd3 {[%clk 01:31:44]} {[%emt 00:00:06]} Qc7 {[%clk 01:10:54]}
{[%emt 00:01:36]} 13. Re1 {[%clk 01:31:41]} {[%emt 00:00:33]} Nh5 {[%clk
01:09:26]} {[%emt 00:01:58]} 14. Qe2 {[%clk 01:26:48]} {[%emt 00:05:21]} a5
{[%clk 00:59:55]} {[%emt 00:10:02]} 15. a4 {[%clk 01:24:48]} {[%emt 00:02:30]}
Nf4 {[%clk 00:53:15]} {[%emt 00:07:10]} 16. Qb5 {[%clk 01:23:27]} {[%emt
00:01:51]} e6 {[%clk 00:48:21]} {[%emt 00:05:25]} 17. Nc5 {[%clk 01:16:42]}
{[%emt 00:07:14]} Rfb8 {[%clk 00:42:17]} {[%emt 00:06:36]} 18. Bxf4 {[%clk
01:15:36]} {[%emt 00:01:35]} Qxf4 {[%clk 00:42:37]} {[%emt 00:00:09]} 19. Nd7
{[%clk 01:15:47]} {[%emt 00:00:19]} Rd8 {[%clk 00:41:27]} {[%emt 00:01:41]} 20.
Qxb7 {[%clk 01:14:48]} {[%emt 00:01:29]} Qd6 {[%clk 00:36:54]} {[%emt
00:05:02]} 21. Nde5 {[%clk 01:15:06]} {[%emt 00:00:13]} Nxe5 {[%clk 00:36:36]}
{[%emt 00:00:50]} 22. dxe5 {[%clk 01:15:17]} {[%emt 00:00:18]} Qc5 {[%clk
00:35:17]} {[%emt 00:01:46]} 23. Qb5 {[%clk 01:15:06]} {[%emt 00:00:44]} Qxb5
{[%clk 00:34:15]} {[%emt 00:01:33]} 24. axb5 {[%clk 01:15:29]} {[%emt
00:00:06]} Rdb8 {[%clk 00:34:36]} {[%emt 00:00:10]} 25. Nd4 {[%clk 01:14:29]}
{[%emt 00:01:28]} Bf8 {[%clk 00:33:18]} {[%emt 00:01:49]} 26. Ra4 {[%clk
01:09:24]} {[%emt 00:05:36]} Bc5 {[%clk 00:32:32]} {[%emt 00:01:15]} 27. Rea1
{[%clk 01:09:41]} {[%emt 00:00:14]} Bxd4 {[%clk 00:32:01]} {[%emt 00:01:01]} 28.
cxd4 {[%clk 01:10:04]} {[%emt 00:00:06]} Rxb5 {[%clk 00:32:26]} {[%emt
00:00:06]} 29. b4 {[%clk 01:10:29]} {[%emt 00:00:04]} Kf8 {[%clk 00:26:05]}
{[%emt 00:06:51]} 30. Rxa5 {[%clk 01:00:50]} {[%emt 00:10:09]} Rbxa5 {[%clk
00:25:38]} {[%emt 00:00:57]} 31. bxa5 {[%clk 00:53:16]} {[%emt 00:08:05]} Ke7
{[%clk 00:25:20]} {[%emt 00:00:48]} 32. Kf1 {[%clk 00:52:45]} {[%emt 00:01:01]}
Kd7 {[%clk 00:24:51]} {[%emt 00:01:00]} 33. Ke2 {[%clk 00:53:09]} {[%emt
00:00:04]} Ra7 {[%clk 00:17:17]} {[%emt 00:08:06]} 34. Ke3 {[%clk 00:45:39]}
{[%emt 00:08:00]} Kc6 {[%clk 00:15:36]} {[%emt 00:02:10]} 35. Rc1+ {[%clk
00:46:08]} {[%emt 00:00:02]} Kb5 {[%clk 00:16:00]} {[%emt 00:00:06]} 36. Rc5+
{[%clk 00:46:32]} {[%emt 00:00:06]} Kb4 {[%clk 00:16:25]} {[%emt 00:00:05]} 37.
f3 {[%clk 00:46:58]} {[%emt 00:00:04]} Rxa5 {[%clk 00:13:23]} {[%emt 00:03:32]}
38. Rc7 {[%clk 00:45:24]} {[%emt 00:02:04]} Ra3+ {[%clk 00:13:15]} {[%emt
00:00:39]} 39. Kf4 {[%clk 00:45:14]} {[%emt 00:00:39]} h6 {[%clk 00:09:14]}
{[%emt 00:04:32]} 40. Rxf7 {[%clk 00:37:06]} {[%emt 00:08:36]} g5 {[%clk
00:03:24]} {[%emt 00:06:21]} 41. Kg4 {[%clk 00:37:09]} {[%emt 00:00:26]} Kc4
{[%clk 00:02:36]} {[%emt 00:01:19]} 42. Rf6 {[%clk 00:37:32]} {[%emt 00:00:06]}
Ra6 {[%clk 00:23:13]} {[%emt 00:09:54]} 43. Rxh6 {[%clk 01:07:49]} {[%emt
00:00:12]} Kxd4 {[%clk 00:23:40]} {[%emt 00:00:04]} 44. Kxg5 {[%clk 01:08:03]}
{[%emt 00:00:16]} Ke3 {[%clk 00:20:42]} {[%emt 00:03:28]} 45. Rh8 {[%clk
01:08:05]} {[%emt 00:00:27]} d4 {[%clk 00:19:47]} {[%emt 00:01:26]} 46. Rd8
{[%clk 01:08:15]} {[%emt 00:00:19]} d3 {[%clk 00:18:54]} {[%emt 00:01:24]} 47.
Kf6 {[%clk 01:07:35]} {[%emt 00:01:09]} d2 {[%clk 00:15:30]} {[%emt 00:03:55]}
48. h4 {[%clk 01:02:16]} {[%emt 00:05:48]} Ra4 {[%clk 00:10:25]} {[%emt
00:05:36]} 49. Rxd2 {[%clk 01:02:36]} {[%emt 00:00:10]} Kxd2 {[%clk 00:10:00]}
{[%emt 00:00:55]} 50. Kxe6 {[%clk 00:55:14]} {[%emt 00:07:53]} Ke3 {[%clk
00:06:15]} {[%emt 00:04:14]} 51. Kf6 {[%clk 00:53:01]} {[%emt 00:02:42]} Rxh4
{[%clk 00:04:49]} {[%emt 00:01:57]} 52. e6 {[%clk 00:53:23]} {[%emt 00:00:09]}
Rh6+ {[%clk 00:04:17]} {[%emt 00:01:01]} 53. Kf7 {[%clk 00:53:00]} {[%emt
00:00:53]} Rh7+ {[%clk 00:01:55]} {[%emt 00:02:53]} 54. Kf8 {[%clk 00:53:22]}
{[%emt 00:00:07]} Rh5 {[%clk 00:01:35]} {[%emt 00:00:50]} 55. e7 {[%clk
00:53:37]} {[%emt 00:00:16]} Rf5+ {[%clk 00:01:49]} {[%emt 00:00:16]} 56. Kg7
{[%clk 00:53:59]} {[%emt 00:00:08]} Rg5+ {[%clk 00:01:32]} {[%emt 00:00:48]} 57.
Kf6 {[%clk 00:54:19]} {[%emt 00:00:09]} Rxg2 {[%clk 00:01:09]} {[%emt
00:00:54]} 58. e8=Q+ {[%clk 00:50:59]} {[%emt 00:03:48]} Kxf3 {[%clk 00:01:38]}
{[%emt 00:00:03]} 59. Kf5 {[%clk 00:51:13]} {[%emt 00:00:15]} Kf2 {[%clk
00:00:56]} {[%emt 00:01:14]} 60. Kf4 {[%clk 00:51:35]} {[%emt 00:00:07]} Kf1
{[%clk 00:00:40]} {[%emt 00:00:44]} 61. Qh5 {[%clk 00:51:37]} {[%emt 00:00:30]}
Rd2 {[%clk 00:00:34]} {[%emt 00:00:37]} 62. Ke3 {[%clk 00:51:37]} 1-0

[Event "Schack-SM 2024: Mastarklassen-elit"]
[Site "Fortnox Arena, Hejaregatan 5, Vaxjo, Sweden"]
[Date "2024.07.05"]
[Round "7.1"]
[White "Lundin, Jan"]
[Black "Arman, Deniz"]
[Result "0-1"]
[TimeControl "90 minutes for 40 moves + 30 minutes for the rest of the game + 30 seconds per move from move one."]
[WhiteTitle "FM"]
[BlackTitle "FM"]
[WhiteElo "2246"]
[BlackElo "2343"]

1. e4 {[%clk 01:30:57]} {[%emt 00:00:03]} d6 {[%clk 01:26:28]} {[%emt
00:04:33]} 2. Nc3 {[%clk 01:30:56]} {[%emt 00:00:30]} Nf6 {[%clk 01:26:18]}
{[%emt 00:00:40]} 3. d3 {[%clk 01:29:35]} {[%emt 00:01:52]} e5 {[%clk
01:23:45]} {[%emt 00:03:03]} 4. g3 {[%clk 01:28:53]} {[%emt 00:01:11]} Be7
{[%clk 01:22:55]} {[%emt 00:01:19]} 5. Bg2 {[%clk 01:28:59]} {[%emt 00:00:25]}
O-O {[%clk 01:22:55]} {[%emt 00:00:30]} 6. Nge2 {[%clk 01:29:15]} {[%emt
00:00:14]} c6 {[%clk 01:22:26]} {[%emt 00:00:59]} 7. O-O {[%clk 01:27:58]}
{[%emt 00:01:46]} b5 {[%clk 01:21:49]} {[%emt 00:01:08]} 8. a3 {[%clk
01:28:07]} {[%emt 00:00:22]} Nbd7 {[%clk 01:21:40]} {[%emt 00:00:39]} 9. h3
{[%clk 01:27:20]} {[%emt 00:01:16]} a5 {[%clk 01:21:47]} {[%emt 00:00:25]} 10.
g4 {[%clk 01:19:09]} {[%emt 00:08:41]} h5 {[%clk 01:19:42]} {[%emt 00:02:35]}
11. Ng3 {[%clk 01:17:39]} {[%emt 00:01:59]} hxg4 {[%clk 01:19:04]} {[%emt
00:01:08]} 12. hxg4 {[%clk 01:17:45]} {[%emt 00:00:25]} g6 {[%clk 01:19:27]}
{[%emt 00:00:07]} 13. Bh6 {[%clk 01:15:23]} {[%emt 00:02:51]} Re8 {[%clk
01:19:45]} {[%emt 00:00:13]} 14. Bf3 {[%clk 01:10:33]} {[%emt 00:05:18]} Nh7
{[%clk 01:18:58]} {[%emt 00:01:16]} 15. Kg2 {[%clk 01:05:40]} {[%emt 00:05:24]}
Bg5 {[%clk 01:17:16]} {[%emt 00:02:14]} 16. Rh1 {[%clk 01:03:55]} {[%emt
00:02:14]} Qf6 {[%clk 00:37:16]} {[%emt 00:40:29]} 17. Qg1 {[%clk 00:58:16]}
{[%emt 00:06:08]} Nc5 {[%clk 00:32:35]} {[%emt 00:05:13]} 18. Qh2 {[%clk
00:55:35]} {[%emt 00:03:10]} Ne6 {[%clk 00:31:41]} {[%emt 00:01:24]} 19. Rag1
{[%clk 00:54:27]} {[%emt 00:01:39]} b4 {[%clk 00:27:41]} {[%emt 00:04:29]} 20.
Nce2 {[%clk 00:47:29]} {[%emt 00:07:27]} Bxh6 {[%clk 00:25:47]} {[%emt
00:02:26]} 21. Qxh6 {[%clk 00:47:36]} {[%emt 00:00:24]} Neg5 {[%clk 00:26:05]}
{[%emt 00:00:11]} 22. Kf1 {[%clk 00:33:35]} {[%emt 00:14:31]} bxa3 {[%clk
00:25:08]} {[%emt 00:01:27]} 23. bxa3 {[%clk 00:32:09]} {[%emt 00:01:56]} Qg7
{[%clk 00:19:30]} {[%emt 00:06:07]} 24. Qxg7+ {[%clk 00:27:16]} {[%emt
00:05:23]} Kxg7 {[%clk 00:19:52]} {[%emt 00:00:09]} 25. Kg2 {[%clk 00:27:33]}
{[%emt 00:00:12]} Nxf3 {[%clk 00:17:53]} {[%emt 00:02:30]} 26. Kxf3 {[%clk
00:27:56]} {[%emt 00:00:07]} Ng5+ {[%clk 00:18:19]} {[%emt 00:00:05]} 27. Ke3
{[%clk 00:28:13]} {[%emt 00:00:12]} Bxg4 {[%clk 00:17:55]} {[%emt 00:00:55]} 28.
Rh4 {[%clk 00:27:50]} {[%emt 00:00:52]} Bxe2 {[%clk 00:15:13]} {[%emt
00:03:14]} 29. Kxe2 {[%clk 00:21:09]} {[%emt 00:07:11]} Kf6 {[%clk 00:13:43]}
{[%emt 00:01:59]} 30. Rb1 {[%clk 00:17:31]} {[%emt 00:04:08]} Rab8 {[%clk
00:13:15]} {[%emt 00:00:57]} 31. Rhh1 {[%clk 00:17:49]} {[%emt 00:00:12]} Rb5
{[%clk 00:10:07]} {[%emt 00:03:39]} 32. Rxb5 {[%clk 00:16:42]} {[%emt
00:01:37]} cxb5 {[%clk 00:10:33]} {[%emt 00:00:04]} 33. Rb1 {[%clk 00:16:55]}
{[%emt 00:00:17]} Rb8 {[%clk 00:10:52]} {[%emt 00:00:11]} 34. Nf1 {[%clk
00:15:10]} {[%emt 00:02:15]} Ne6 {[%clk 00:08:41]} {[%emt 00:02:41]} 35. c3
{[%clk 00:13:47]} {[%emt 00:01:53]} Nf4+ {[%clk 00:07:51]} {[%emt 00:01:20]} 36.
Kd2 {[%clk 00:13:58]} {[%emt 00:00:20]} Ke7 {[%clk 00:07:50]} {[%emt 00:00:30]}
37. a4 {[%clk 00:03:29]} {[%emt 00:10:59]} b4 {[%clk 00:07:39]} {[%emt
00:00:41]} 38. cxb4 {[%clk 00:03:53]} {[%emt 00:00:06]} axb4 {[%clk 00:06:04]}
{[%emt 00:02:05]} 39. Ne3 {[%clk 00:04:11]} {[%emt 00:00:13]} Kd7 {[%clk
00:05:37]} {[%emt 00:00:58]} 40. Nc2 {[%clk 00:02:39]} {[%emt 00:02:01]} b3
{[%clk 00:04:57]} {[%emt 00:01:08]} 41. Ne3 {[%clk 00:25:56]} {[%emt 00:07:14]}
Ne6 {[%clk 00:27:53]} {[%emt 00:07:34]} 42. Nc4 {[%clk 00:25:28]} {[%emt
00:00:59]} Nc5 {[%clk 00:26:57]} {[%emt 00:01:26]} 43. a5 {[%clk 00:25:41]}
{[%emt 00:00:16]} Kc6 {[%clk 00:26:34]} {[%emt 00:00:53]} 44. Kc3 {[%clk
00:24:29]} {[%emt 00:01:42]} Na4+ {[%clk 00:24:00]} {[%emt 00:03:05]} 45. Kd2
{[%clk 00:23:29]} {[%emt 00:01:28]} Kc5 {[%clk 00:23:06]} {[%emt 00:01:25]} 46.
Ra1 {[%clk 00:13:10]} {[%emt 00:10:49]} Kb4 {[%clk 00:20:02]} {[%emt 00:03:33]}
47. a6 {[%clk 00:03:45]} {[%emt 00:09:56]} b2 {[%clk 00:17:37]} {[%emt
00:02:55]} 48. a7 {[%clk 00:04:03]} {[%emt 00:00:12]} Ra8 {[%clk 00:15:30]}
{[%emt 00:02:38]} 49. Rb1 {[%clk 00:04:14]} {[%emt 00:00:18]} Kb3 {[%clk
00:15:15]} {[%emt 00:00:44]} 50. Na5+ {[%clk 00:02:35]} {[%emt 00:02:08]} Ka2
{[%clk 00:14:14]} {[%emt 00:01:31]} 51. Kc2 {[%clk 00:03:01]} {[%emt 00:00:06]}
Rxa7 {[%clk 00:13:25]} {[%emt 00:01:18]} 52. Nc4 {[%clk 00:03:23]} {[%emt
00:00:08]} Rc7 {[%clk 00:12:24]} {[%emt 00:01:31]} 53. f3 {[%clk 00:03:17]}
{[%emt 00:00:36]} Rc8 {[%clk 00:10:42]} {[%emt 00:02:12]} 54. Rh1 {[%clk
00:03:29]} {[%emt 00:00:17]} Rh8 {[%clk 00:09:24]} {[%emt 00:01:48]} 55. Nxb2
{[%clk 00:03:38]} {[%emt 00:00:22]} Rxh1 {[%clk 00:09:49]} {[%emt 00:00:04]} 56.
Nxa4 {[%clk 00:04:05]} {[%emt 00:00:03]} Ka3 {[%clk 00:09:33]} {[%emt
00:00:46]} 57. Nb6 {[%clk 00:04:27]} {[%emt 00:00:09]} Kb4 {[%clk 00:09:36]}
{[%emt 00:00:27]} 0-1

[Event "Schack-SM 2024: Mastarklassen-elit"]
[Site "Fortnox Arena, Hejaregatan 5, Vaxjo, Sweden"]
[Date "2024.07.05"]
[Round "7.2"]
[White "Olsson, William"]
[Black "Thorn, Eric"]
[Result "1/2-1/2"]
[TimeControl "90 minutes for 40 moves + 30 minutes for the rest of the game + 30 seconds per move from move one."]
[WhiteTitle "IM"]
[BlackTitle "FM"]
[WhiteElo "2363"]
[BlackElo "2359"]

1. c4 {[%clk 01:30:58]} {[%emt 00:00:04]} e5 {[%clk 01:30:53]} {[%emt
00:00:06]} 2. g3 {[%clk 01:31:21]} {[%emt 00:00:06]} Nf6 {[%clk 01:31:09]}
{[%emt 00:00:14]} 3. Bg2 {[%clk 01:29:57]} {[%emt 00:01:53]} Bc5 {[%clk
01:31:27]} {[%emt 00:00:13]} 4. Nc3 {[%clk 01:30:01]} {[%emt 00:00:27]} c6
{[%clk 01:31:27]} {[%emt 00:00:30]} 5. e4 {[%clk 01:19:35]} {[%emt 00:10:56]}
d5 {[%clk 01:27:12]} {[%emt 00:04:44]} 6. exd5 {[%clk 01:16:36]} {[%emt
00:03:30]} O-O {[%clk 01:24:59]} {[%emt 00:02:43]} 7. Nge2 {[%clk 01:13:52]}
{[%emt 00:03:14]} cxd5 {[%clk 01:19:22]} {[%emt 00:06:09]} 8. cxd5 {[%clk
01:11:32]} {[%emt 00:02:48]} Na6 {[%clk 01:12:13]} {[%emt 00:07:40]} 9. O-O
{[%clk 01:07:06]} {[%emt 00:04:54]} Bg4 {[%clk 00:39:27]} {[%emt 00:33:17]} 10.
h3 {[%clk 01:04:02]} {[%emt 00:03:34]} Bxe2 {[%clk 00:38:31]} {[%emt 00:01:27]}
11. Qxe2 {[%clk 01:04:11]} {[%emt 00:00:21]} Re8 {[%clk 00:32:12]} {[%emt
00:06:49]} 12. d3 {[%clk 00:56:05]} {[%emt 00:08:35]} h6 {[%clk 00:30:06]}
{[%emt 00:02:36]} 13. a3 {[%clk 00:54:53]} {[%emt 00:01:44]} Bd4 {[%clk
00:29:47]} {[%emt 00:00:47]} 14. Nb5 {[%clk 00:50:08]} {[%emt 00:05:15]} Bb6
{[%clk 00:28:09]} {[%emt 00:02:08]} 15. Nc3 {[%clk 00:46:36]} {[%emt 00:04:03]}
Nc5 {[%clk 00:26:13]} {[%emt 00:02:26]} 16. Qd1 {[%clk 00:46:27]} {[%emt
00:00:38]} e4 {[%clk 00:22:15]} {[%emt 00:04:29]} 17. dxe4 {[%clk 00:43:37]}
{[%emt 00:03:19]} Ncxe4 {[%clk 00:21:42]} {[%emt 00:01:03]} 18. Qf3 {[%clk
00:38:52]} {[%emt 00:05:15]} Nxc3 {[%clk 00:20:31]} {[%emt 00:01:42]} 19. bxc3
{[%clk 00:38:05]} {[%emt 00:01:16]} Rc8 {[%clk 00:20:45]} {[%emt 00:00:16]} 20.
Qd3 {[%clk 00:35:53]} {[%emt 00:02:42]} Nd7 {[%clk 00:19:12]} {[%emt 00:02:03]}
21. Bf4 {[%clk 00:35:44]} {[%emt 00:00:39]} Qf6 {[%clk 00:17:26]} {[%emt
00:02:16]} 22. Rac1 {[%clk 00:32:02]} {[%emt 00:04:11]} Ne5 {[%clk 00:16:58]}
{[%emt 00:00:59]} 23. Bxe5 {[%clk 00:32:25]} {[%emt 00:00:08]} Rxe5 {[%clk
00:16:45]} {[%emt 00:00:43]} 24. c4 {[%clk 00:31:51]} {[%emt 00:01:03]} Bc5
{[%clk 00:16:06]} {[%emt 00:01:08]} 25. Bf3 {[%clk 00:27:01]} {[%emt 00:05:22]}
Rce8 {[%clk 00:13:00]} {[%emt 00:03:36]} 26. Kg2 {[%clk 00:27:19]} {[%emt
00:00:12]} b6 {[%clk 00:12:50]} {[%emt 00:00:40]} 27. h4 {[%clk 00:26:02]}
{[%emt 00:01:46]} h5 {[%clk 00:11:11]} {[%emt 00:02:09]} 28. Rcd1 {[%clk
00:23:31]} {[%emt 00:03:02]} Qd6 {[%clk 00:11:01]} {[%emt 00:00:39]} 29. a4
{[%clk 00:23:38]} {[%emt 00:00:23]} a5 {[%clk 00:10:55]} {[%emt 00:00:35]} 30.
Rd2 {[%clk 00:22:51]} {[%emt 00:01:17]} g6 {[%clk 00:09:07]} {[%emt 00:02:18]}
31. Qc2 {[%clk 00:18:16]} {[%emt 00:05:06]} Rf5 {[%clk 00:07:02]} {[%emt
00:02:34]} 32. Rd3 {[%clk 00:18:06]} {[%emt 00:00:40]} Rfe5 {[%clk 00:06:39]}
{[%emt 00:00:53]} 33. g4 {[%clk 00:14:26]} {[%emt 00:04:11]} hxg4 {[%clk
00:05:55]} {[%emt 00:01:14]} 34. Bxg4 {[%clk 00:14:54]} {[%emt 00:00:01]} Re4
{[%clk 00:04:17]} {[%emt 00:02:09]} 35. Rg3 {[%clk 00:15:07]} {[%emt 00:00:17]}
Qf4 {[%clk 00:03:33]} {[%emt 00:01:16]} 36. h5 {[%clk 00:13:59]} {[%emt
00:01:37]} Rxc4 {[%clk 00:03:51]} {[%emt 00:00:13]} 37. Qd3 {[%clk 00:14:27]}
{[%emt 00:00:01]} g5 {[%clk 00:01:42]} {[%emt 00:02:39]} 38. Bf3 {[%clk
00:13:37]} {[%emt 00:01:21]} Rd4 {[%clk 00:01:14]} {[%emt 00:00:58]} 39. Qb5
{[%clk 00:11:50]} {[%emt 00:02:17]} Re5 {[%clk 00:01:17]} {[%emt 00:00:26]} 40.
Qc6 {[%clk 00:09:33]} {[%emt 00:02:46]} Rd2 {[%clk 00:00:37]} {[%emt 00:01:11]}
41. h6 {[%clk 00:26:09]} {[%emt 00:13:54]} Kh7 {[%clk 00:28:50]} {[%emt
00:02:16]} 42. Rg4 {[%clk 00:26:05]} {[%emt 00:00:33]} Qf5 {[%clk 00:23:35]}
{[%emt 00:05:46]} 43. Rc4 {[%clk 00:18:28]} {[%emt 00:08:08]} Ree2 {[%clk
00:12:16]} {[%emt 00:11:49]} 44. Rxc5 {[%clk 00:15:17]} {[%emt 00:03:40]} bxc5
{[%clk 00:12:42]} {[%emt 00:00:05]} 45. Bxe2 {[%clk 00:15:37]} {[%emt
00:00:08]} Rxe2 {[%clk 00:13:06]} {[%emt 00:00:07]} 46. Qxc5 {[%clk 00:12:39]}
{[%emt 00:03:28]} Re4 {[%clk 00:04:01]} {[%emt 00:09:34]} 47. f3 {[%clk
00:12:30]} {[%emt 00:00:39]} Rh4 {[%clk 00:04:27]} {[%emt 00:00:04]} 48. Kg1
{[%clk 00:09:18]} {[%emt 00:03:43]} Qh3 {[%clk 00:03:20]} {[%emt 00:01:37]} 49.
Qc2+ {[%clk 00:08:43]} {[%emt 00:01:03]} Kxh6 {[%clk 00:03:46]} {[%emt
00:00:06]} 50. Qg2 {[%clk 00:09:09]} {[%emt 00:00:03]} Qxg2+ {[%clk 00:04:03]}
{[%emt 00:00:13]} 51. Kxg2 {[%clk 00:09:37]} {[%emt 00:00:01]} Rd4 {[%clk
00:04:21]} {[%emt 00:00:13]} 52. Rb1 {[%clk 00:09:56]} {[%emt 00:00:10]} Rxd5
{[%clk 00:04:18]} {[%emt 00:00:33]} 53. Rb5 {[%clk 00:10:25]} {[%emt 00:00:02]}
Rd2+ {[%clk 00:02:23]} {[%emt 00:02:25]} 54. Kg3 {[%clk 00:10:25]} {[%emt
00:00:29]} 1/2-1/2